Workbook

Sheet паспорт
A1: ПАТ "УКРТРАНСГАЗ" | G1: ПАСПОРТ ФІЗИКО-ХІМІЧНИХ ПОКАЗНИКІВ ПРИРОДНОГО ГАЗУ № 205
A2: Філія УМГ "ЛЬВІВТРАНСГАЗ" | G2: переданого Комарнівським ЛВУМГ та прийнятого ПАТ "Львівгаз"
A3: Комарнівський ПМ Бібрське ЛВУМГ | G3: Маршрут № 205
A4: Вимірювальна хіміко-аналітична лабораторія
A5: Свідоцтво № РЛ 157/15 чинне до 14.12.2020 р. | K5: по газопроводу " Комарно-Дроздовичі Ду500" | V5: за період з | X5: 2017-02-01 | Z5: по | AA5: 2017-02-28
A7: Число місяця | B7: Компонентний склад, % мол. | N7: Фізико-хімічні показники газу обчислені на основі компонентного складу, 101,325 кПа | X7: Температура точки роси вологи (Р = 3.92 МПа), ºС | Y7: Температура точки роси вуглеводнів, ºС | Z7: Вміст сірководню, г/м3 | AA7: Вміст меркаптанової сірки, г/м3 | AB7: Вміст механічних домішок, г/м3
N8: Густина абсолютна, кг/м3,при 20 ºС, | O8: Температура вимірювання/згоряння при 20/25°С
B9: метан, С1 | C9: етан, С2 | D9: пропан, С3 | E9: ізо-бутан, і-С4 | F9: н-бутан, н-С4 | G9: нео-пентан, нео-С5 | H9: ізо-пентан, і-С5 | I9: н-пентан, н-С5 | J9: гексани та вищі, С6+ | K9: кисень, О2 | L9: азот, N2 | M9: діоксид вуглецю, CО2 | O9: Теплота згоряння нижча | R9: Теплота згоряння вища | U9: Число Воббе вище
O10: ккал/м3 | P10: МДж/м3 | Q10: кВт⋅год/м3 | R10: ккал/м3 | S10: МДж/м3 | T10: кВт⋅год/м3 | U10: ккал/м3 | V10: МДж/м3 | W10: кВт⋅год/м3
A11: 1 | B11: 91.9771 | C11: 3.9231 | D11: 0.9785 | E11: 0.1149 | F11: 0.1678 | G11: 0.0025 | H11: 0.0449 | I11: 0.0355 | J11: 0.0459 | K11: 0.0083 | L11: 1.3707 | M11: 1.3308 | N11: 0.7334 | O11: =P11*238.8459 -> 8222.413415 | P11: 34.4256 | Q11: =P11/3.6 -> 9.562666667 | R11: =S11*238.8459 -> 9110.705202 | S11: 38.1447 | T11: =S11/3.6 -> 10.59575 | U11: 11675.68 | V11: =U11/238.8459 -> 48.88373633 | W11: =V11/3.6 -> 13.57881565 | AC11: =SUM(B11:M11)+$K$42+$N$42 -> 100
A12: 2 | O12: =P12*238.8459 -> 8222.413415 | P12: 34.4256 | Q12: =P12/3.6 -> 9.562666667 | R12: =S12*238.8459 -> 9110.705202 | S12: 38.1447 | T12: =S12/3.6 -> 10.59575 | AC12: 0
A13: 3 | O13: 8222.413415 | P13: 34.4256 | Q13: 9.562666667 | R13: 9110.705202 | S13: 38.1447 | T13: 10.59575 | AC13: 0 | AD13: =IF(AC13=100,"ОК"," ") -> 
A14: 4 | O14: 8222.413415 | P14: 34.4256 | Q14: 9.562666667 | R14: 9110.705202 | S14: 38.1447 | T14: 10.59575 | AC14: 0 | AD14: =IF(AC14=100,"ОК"," ") -> 
A15: 5 | O15: 8222.413415 | P15: 34.4256 | Q15: 9.562666667 | R15: 9110.705202 | S15: 38.1447 | T15: 10.59575 | AC15: 0
A16: 6 | B16: 91.9974 | C16: 3.932 | D16: 0.9748 | E16: 0.115 | F16: 0.1671 | G16: 0.0026 | H16: 0.0457 | I16: 0.0351 | J16: 0.0463 | K16: 0.008 | L16: 1.3697 | M16: 1.3062 | N16: 0.7331 | O16: 8224.73022 | P16: 34.4353 | Q16: 9.565361111 | R16: 9113.284737 | S16: 38.1555 | T16: 10.59875 | U16: 11681 | V16: =U16/238.8459 -> 48.90601011 | W16: 13.58500281 | AC16: 99.9999
A17: 7 | O17: 8224.73022 | P17: 34.4353 | Q17: =P17/3.6 -> 9.565361111 | R17: 9113.284737 | S17: 38.1555 | T17: =S17/3.6 -> 10.59875 | AC17: 0
A18: 8 | O18: 8224.73022 | P18: 34.4353 | Q18: 9.565361111 | R18: 9113.284737 | S18: 38.1555 | T18: 10.59875 | AC18: 0
A19: 9 | O19: 8224.73022 | P19: 34.4353 | Q19: 9.565361111 | R19: 9113.284737 | S19: 38.1555 | T19: 10.59875 | AC19: 0
A20: 10 | O20: 8224.73022 | P20: 34.4353 | Q20: 9.565361111 | R20: 9113.284737 | S20: 38.1555 | T20: 10.59875 | AC20: 0
A21: 11 | O21: 8224.73022 | P21: 34.4353 | Q21: 9.565361111 | R21: 9113.284737 | S21: 38.1555 | T21: 10.59875 | AC21: 0
A22: 12 | O22: 8224.73022 | P22: 34.4353 | Q22: 9.565361111 | R22: 9113.284737 | S22: 38.1555 | T22: 10.59875 | AC22: 0
A23: 13 | B23: 92.2776 | C23: 3.7979 | D23: 0.9613 | E23: 0.1153 | F23: 0.1647 | G23: 0.0026 | H23: 0.0446 | I23: 0.0349 | J23: 0.0462 | K23: 0.0062 | L23: 1.3188 | M23: 1.23 | N23: 0.7309 | O23: 8224.133106 | P23: 34.4328 | Q23: 9.564666667 | R23: 9113.045892 | S23: 38.1545 | T23: 10.59847222 | U23: 11698.12 | V23: 48.97768812 | W23: 13.60491337 | AC23: 100.0001
A24: 14 | O24: 8224.133106 | P24: 34.4328 | Q24: =P24/3.6 -> 9.564666667 | R24: 9113.045892 | S24: 38.1545 | T24: =S24/3.6 -> 10.59847222 | AC24: 0
A25: 15 | O25: 8224.133106 | P25: 34.4328 | Q25: 9.564666667 | R25: 9113.045892 | S25: 38.1545 | T25: 10.59847222 | AC25: 0
A26: 16 | O26: 8224.133106 | P26: 34.4328 | Q26: 9.564666667 | R26: 9113.045892 | S26: 38.1545 | T26: 10.59847222 | AC26: 0
A27: 17 | O27: 8224.133106 | P27: 34.4328 | Q27: 9.564666667 | R27: 9113.045892 | S27: 38.1545 | T27: 10.59847222 | AC27: 0
A28: 18 | O28: 8224.133106 | P28: 34.4328 | Q28: 9.564666667 | R28: 9113.045892 | S28: 38.1545 | T28: 10.59847222 | AC28: 0
A29: 19 | O29: 8224.133106 | P29: 34.4328 | Q29: 9.564666667 | R29: 9113.045892 | S29: 38.1545 | T29: 10.59847222 | AC29: 0
A30: 20 | B30: 95.9576 | C30: 2.1141 | D30: 0.6224 | E30: 0.0953 | F30: 0.0995 | G30: 0.0013 | H30: 0.0224 | I30: 0.0161 | J30: 0.0165 | K30: 0.0067 | L30: 0.7593 | M30: 0.2886 | N30: 0.6999 | O30: 8160.958365 | P30: 34.1683 | Q30: 9.491194444 | R30: 9050.038343 | S30: 37.8907 | T30: 10.52519444 | U30: 11871.69 | V30: 49.70439099 | W30: 13.80677528 | X30: -9.8 | Z30: відсут | AA30: відсут | AB30: відсут | AC30: 99.9998 | AD30: =IF(AC30=100,"ОК"," ") -> 
A31: 21 | O31: 8160.958365 | P31: 34.1683 | Q31: =P31/3.6 -> 9.491194444 | R31: 9050.038343 | S31: 37.8907 | T31: =S31/3.6 -> 10.52519444 | AC31: 0
A32: 22 | O32: 8160.958365 | P32: 34.1683 | Q32: 9.491194444 | R32: 9050.038343 | S32: 37.8907 | T32: 10.52519444 | AC32: 0
A33: 23 | O33: 8160.958365 | P33: 34.1683 | Q33: 9.491194444 | R33: 9050.038343 | S33: 37.8907 | T33: 10.52519444 | AC33: 0 | AD33: =IF(AC33=100,"ОК"," ") -> 
A34: 24 | O34: 8160.958365 | P34: 34.1683 | Q34: 9.491194444 | R34: 9050.038343 | S34: 37.8907 | T34: 10.52519444 | AC34: 0
A35: 25 | O35: 8160.958365 | P35: 34.1683 | Q35: 9.491194444 | R35: 9050.038343 | S35: 37.8907 | T35: 10.52519444 | AC35: 0
A36: 26 | O36: 8160.958365 | P36: 34.1683 | Q36: 9.491194444 | R36: 9050.038343 | S36: 37.8907 | T36: 10.52519444 | AC36: 0
A37: 27 | O37: 8160.958365 | P37: 34.1683 | Q37: 9.491194444 | R37: =S37*238.8459 -> 9050.038343 | S37: 37.8907 | T37: 10.52519444 | AC37: 0
A38: 28 | O38: 8160.958365 | P38: 34.1683 | Q38: =P38/3.6 -> 9.491194444 | R38: 9050.038343 | S38: 37.8907 | T38: =S38/3.6 -> 10.52519444 | AC38: 0
A39: 29 | AC39: =SUM(B39:M39)+$K$42+$N$42 -> 0
A40: 30 | AC40: 0
A41: 31 | AC41: 0
A42: Рівень одоризації відповідає чинним нормативним документам | O42: 8223.704486 | P42: 34.43100545 | Q42: 9.564168182 | R42: 9112.423571 | S42: 38.15189447 | T42: 10.59774846
H43: Середньозважене значення теплоти згоряння:
B46: Начальник управління Бібрського ЛВУМГ Саловський Б.Й.
C47: Підрозділу підприємства, якому підпорядкована лабораторія | O47: прізвище | R47: підпис | V47: дата
B48: Хімік ВХАЛ Іваненко О.С.
C49: Лабораторія, де здійснювалось вимірювання газу | O49: прізвище | R49: підпис | V49: дата
B50: Начальник дільниці ГВіМ Кузьмін Т.Б.
C51: Підрозділу, відповідального за облік газу за маршрутом | O51: прізвище | R51: підпис | V51: дата

Sheet додаток
A2: Додаток до Паспорту фізико-хімічних показників природного газу №205
A4: Область | B4: ГРС, прямий споживач | C4: Cередньозважене значення вищої теплоти згоряння
C5: МДж/м³ | D5: ккал/м³ | E5: кВт*год./м³
A6: Львівська область | B6: ГРС Коропуж | C6: 38.08 | D6: 9096 | E6: 10.58
B7: ГРС Луки | C7: 38.08 | D7: 9096 | E7: 10.58
B8: ГРС Рудки | C8: 38.08 | D8: 9096 | E8: 10.58
B9: ГРС Бабино | C9: 38.08 | D9: 9096 | E9: 10.58
B10: ГРС Воютичі | C10: 38.08 | D10: 9096 | E10: 10.58
B11: ГРС Ст.Самбір | C11: 38.15 | D11: 9112 | E11: 10.6
B12: ГРС Самбір | C12: 38.09 | D12: 9096 | E12: 10.58
B13: ГРС Лютовиська | C13: 38.08 | D13: 9096 | E13: 10.58
B14: ГРС Міженець | C14: 38.08 | D14: 9096 | E14: 10.58
B15: ГРС Турка | C15: 38.02757294 | D15: 9082.729883 | E15: 10.56321471
A16: Середньозважене значення вищої теплоти згоряння по маршруту № 205 | C16: 38.15 | D16: 9112 | E16: 10.6
A20: Начальник управління Бібрського ЛВУМГ Саловський Б.Й.
A21: Підрозділу підприємства, якому підпорядкована лабораторія | D21: прізвище | E21: підпис | F21: дата
A22: Хімік ВХАЛ Іваненко О.С.
A23: Лабораторія, де здійснювалось вимірювання газу | D23: прізвище | E23: підпис | F23: дата
A24: Начальник дільниці ГВіМ Кузьмін Т.Б.
A25: Підрозділу, відповідального за облік газу за маршрутом | D25: прізвище | E25: підпис | F25: дата

Sheet variablesList (hidden)
A1: 3 | B1: x:\gaysin | C1: 10, 11, 24, 25, 127, 128, 132, 180, 207, 215 | D1: x:\
B2: x:\Illinci
B3: x:\Talne
